bitfinex-derivatives/quotes_SOLF0:USTF0_20250623
["timestamp","ask_amount","ask_price","bid_price","bid_amount"]
[1750676115774,7.4683,133.86,133.84,7.469]
[1750676116279,7.4683,133.86,133.85,3.37345067]
[1750676117879,37.48,133.9,133.84,7.469]
[1750676117880,7.4689,133.85,133.84,3.37345067]
[1750676118678,7.4693,133.84,133.83,3.37345067]
[1750676118883,3.37345067,133.85,133.82,3.37345067]
[1750676119782,7.4699,133.83,133.82,3.37345067]
[1750676120290,7.4699,133.83,133.81,22.10438483]
[1750676120687,2.4613,133.9,133.82,6.96519919]
[1750676120882,2.4613,133.9,133.85,5.27388564]
[1750676121184,7.468,133.87,133.85,5.27388564]
[1750676121587,7.73518564,133.9,133.85,5.27388564]
[1750676121787,7.73518564,133.9,133.85,12.74238564]
[1750676121788,7.4676,133.88,133.85,12.74238564]
[1750676123788,7.4677,133.87,133.85,12.74238564]
[1750676124088,7.73518564,133.9,133.85,5.27388564]
[1750676124290,7.4682,133.86,133.83,5.27388564]
[1750676124492,10.48075741,133.9,133.83,5.27388564]
[1750676124788,37.48,133.89,133.83,5.27388564]
[1750676125583,7.4688,133.85,133.83,12.74378564]
[1750676126188,7.4688,133.85,133.83,5.27388564]
[1750676126687,7.4693,133.84,133.83,5.27388564]
[1750676126890,7.4693,133.84,133.81,22.10448483]
[1750676127579,7.4699,133.83,133.81,22.10448483]
[1750676127883,37.48,133.89,133.81,22.10448483]
[1750676127884,42.75388564,133.86,133.81,5.27388564]
[1750676128189,7.4705,133.82,133.79,57.19088483]
[1750676128584,7.4711,133.81,133.79,49.71908483]
[1750676129093,7.4707,133.82,133.79,57.19088483]
[1750676129891,7.4702,133.83,133.8,7.4714]
[1750676130088,37.48,133.86,133.81,5.27388564]
[1750676130686,7.4696,133.84,133.81,12.74448564]
[1750676132182,7.4696,133.84,133.82,7.4703]
[1750676137791,7.4691,133.85,133.83,12.74378564]
[1750676141297,37.48,133.86,133.83,5.27388564]
[1750676141497,37.44,133.89,133.83,12.23908483]
[1750676141698,37.44,133.89,133.83,5.27388564]
[1750676141999,7.4683,133.86,133.84,7.469]
[1750676151506,7.468,133.87,133.83,12.25216606]
[1750676152595,7.4675,133.88,133.85,5.27388564]
[1750676153106,7.4675,133.88,133.86,7.4679]
[1750676156009,37.44,133.89,133.87,5.27388564]
[1750676157017,44.9071,133.89,133.87,5.27388564]
[1750676157514,44.9071,133.89,133.87,12.74148564]
[1750676157898,44.9071,133.89,133.87,5.27388564]
[1750676157899,7.4671,133.88,133.87,5.27388564]
[1750676160510,44.9068,133.89,133.87,5.27388564]
[1750676160710,44.9068,133.89,133.87,12.74158564]
[1750676160914,37.44,133.89,133.87,12.74158564]
[1750676161806,7.4667,133.89,133.87,5.27388564]
[1750676162811,7.4667,133.89,133.87,12.74128564]
[1750676163607,37.38,133.91,133.87,12.74128564]
[1750676163608,7.4663,133.9,133.87,12.74128564]
[1750676163910,7.4663,133.9,133.87,5.27388564]
[1750676164411,7.4663,133.9,133.87,12.74118564]
[1750676165213,7.4666,133.89,133.87,12.74118564]
[1750676168211,7.4666,133.89,133.88,3.37204368]
[1750676173514,7.4662,133.9,133.88,3.37204368]
[1750676173714,7.4662,133.9,133.89,3.37204368]
[1750676175612,7.4662,133.9,133.87,7.4672]
[1750676175825,7.4662,133.9,133.89,3.37204368]
[1750676177614,40.75204368,133.91,133.84,37.44]
[1750676177821,40.75204368,133.91,133.87,3.37204368]
[1750676178313,37.38,133.91,133.87,3.37204368]
[1750676178619,40.75204368,133.91,133.88,3.37204368]
[1750676179119,7.4666,133.89,133.88,3.37204368]
[1750676180819,7.4674,133.88,133.87,3.37204368]
[1750676191122,40.69204368,133.88,133.84,6.97930028]
[1750676191324,3.37204368,133.86,133.82,12.74744396]
[1750676191822,7.4699,133.84,133.82,5.76814368]
[1750676192415,3.37204368,133.85,133.82,2.3961]
[1750676192619,3.37204368,133.85,133.82,5.76814368]
[1750676193122,7.4693,133.84,133.82,5.76814368]
[1750676194624,7.4693,133.84,133.82,13.23854368]
[1750676194931,7.469,133.85,133.83,3.37204368]
[1750676198032,7.4693,133.84,133.82,2.3961]
[1750676198233,7.4693,133.84,133.83,3.37204368]
[1750676200032,7.4699,133.83,133.82,5.76814368]
[1750676200431,7.4699,133.83,133.82,3.37204368]
[1750676200634,7.4705,133.82,133.81,3.37204368]
[1750676200831,7.4705,133.82,133.8,3.37204368]
[1750676201432,7.471,133.81,133.79,12.3817]
[1750676201736,7.471,133.81,133.8,3.37204368]
[1750676201935,7.471,133.82,133.8,3.37204368]
[1750676202135,3.37204368,133.84,133.8,3.37204368]
[1750676202136,3.37204368,133.83,133.8,3.37204368]
[1750676202337,3.37204368,133.84,133.8,3.37204368]
[1750676202535,7.471,133.81,133.8,3.37204368]
[1750676206339,7.4708,133.82,133.8,3.37204368]
[1750676207639,7.471,133.81,133.8,3.37204368]
[1750676208539,3.37204368,133.82,133.79,3.37204368]
[1750676209139,7.4715,133.81,133.79,3.37204368]
[1750676209840,7.4716,133.8,133.79,3.37204368]
[1750676211440,7.4716,133.8,133.78,3.37204368]
[1750676211634,3.37204368,133.8,133.77,5.83524368]
[1750676211835,3.37204368,133.8,133.77,2.4632]
[1750676212040,7.4726,133.79,133.77,5.83524368]
[1750676212335,3.37204368,133.8,133.77,5.83524368]
[1750676212840,3.37204368,133.8,133.77,2.4632]
[1750676213043,3.37204368,133.8,133.75,44.7941]
[1750676213239,3.37204368,133.8,133.77,3.37204368]
[1750676213435,7.4725,133.79,133.77,3.37204368]
[1750676213641,7.4725,133.79,133.78,3.37204368]
[1750676213843,37.32,133.82,133.79,7.4721]
[1750676213844,44.7907,133.82,133.79,7.4721]
[1750676214041,44.7907,133.82,133.81,3.37204368]
[1750676214042,37.32,133.82,133.81,3.37204368]
[1750676214245,40.69204368,133.86,133.81,3.37204368]
[1750676214443,7.4698,133.84,133.82,3.37204368]
[1750676215242,7.4698,133.84,133.83,3.37204368]
[1750676215943,7.4698,133.84,133.82,3.37204368]
[1750676216247,7.4698,133.84,133.81,12.74456431]
[1750676217645,37.32,133.86,133.81,12.74456431]
[1750676217646,7.47,133.83,133.81,12.74456431]
[1750676218242,37.32,133.83,133.79,7.62846431]
[1750676219044,7.4708,133.82,133.79,15.10036431]
[1750676220542,44.7902,133.83,133.8,7.4715]
[1750676220737,44.7902,133.83,133.81,5.27376431]
[1750676220936,44.7902,133.83,133.81,12.74476431]
[1750676221137,7.4702,133.83,133.81,12.74476431]
[1750676222447,7.4697,133.84,133.81,5.27376431]
[1750676223046,7.4697,133.84,133.81,12.74446431]
[1750676225351,7.4697,133.84,133.82,7.4703]
[1750676226048,7.4697,133.84,133.81,12.74446431]
[1750676230244,40.00827332,133.86,133.81,12.74446431]
[1750676230447,37.28,133.86,133.81,5.27376431]
[1750676230643,7.4701,133.83,133.81,5.27376431]
[1750676232459,7.4701,133.83,133.81,12.74476431]
[1750676232754,7.4701,133.83,133.81,5.27376431]
[1750676232956,40.00827332,133.86,133.8,5.27376431]
[1750676233260,2.72812316,133.85,133.79,22.06474712]
[1750676233459,7.4708,133.82,133.79,22.06474712]
[1750676234964,7.4708,133.82,133.8,7.4715]
[1750676238769,7.4708,133.82,133.79,15.10036431]
[1750676240265,7.4708,133.82,133.81,3.37600972]
[1750676243376,7.4696,133.84,133.81,10.84660972]
[1750676243571,7.4696,133.84,133.82,3.37600972]
[1750676244672,40.65600972,133.86,133.82,3.37600972]
[1750676244872,7.4699,133.83,133.81,3.37600972]
[1750676245278,7.4699,133.83,133.82,3.37600972]
[1750676245478,3.37600972,133.84,133.8,6.98546519]
[1750676245769,3.37600972,133.84,133.81,3.37600972]
[1750676246165,7.4705,133.82,133.81,3.37600972]
[1750676248176,7.4701,133.83,133.81,10.84700972]
[1750676249480,7.4701,133.83,133.82,3.37600972]
[1750676252182,7.4696,133.84,133.82,3.37600972]
[1750676252683,37.28,133.86,133.83,3.37600972]
[1750676253475,37.28,133.86,133.83,10.84560972]
[1750676253684,37.28,133.86,133.84,3.37600972]
[1750676254882,7.4688,133.85,133.83,3.37600972]
[1750676256689,7.4693,133.84,133.83,3.37600972]
[1750676256893,3.37600972,133.85,133.81,10.84670972]
[1750676257094,6.11907858,133.85,133.81,3.37600972]
[1750676257298,7.4704,133.83,133.81,3.37600972]
[1750676257588,3.37600972,133.84,133.81,3.37600972]
[1750676257891,6.11939565,133.85,133.81,3.37600972]
[1750676258083,3.37600972,133.84,133.79,9.8265]
[1750676258287,5.27528185,133.85,133.79,24.3743028]
[1750676258789,7.4708,133.82,133.79,24.3743028]
[1750676259692,7.4708,133.82,133.8,7.4715]
[1750676261805,37.28,133.86,133.81,7.471]
[1750676261806,7.4702,133.83,133.81,7.471]
[1750676264498,7.4702,133.83,133.81,7.471]
[1750676264893,7.4702,133.83,133.81,14.46457782]
[1750676265694,7.4702,133.83,133.81,7.471]
[1750676266488,7.4702,133.83,133.81,14.46457782]
[1750676266694,7.4696,133.84,133.82,7.4703]
[1750676267003,2.74365074,133.85,133.82,12.74558185]
[1750676267298,7.4693,133.85,133.82,12.74558185]
[1750676269602,7.4693,133.85,133.82,14.46367782]
[1750676269790,7.4693,133.85,133.82,19.73895967]
[1750676269994,44.7486,133.86,133.83,7.4696]
[1750676270489,47.49256824,133.86,133.83,7.4696]
[1750676270693,44.7486,133.86,133.83,7.4696]
[1750676271400,7.4688,133.85,133.83,7.4696]
[1750676274805,7.4688,133.85,133.82,12.74548185]
[1750676275507,7.4694,133.84,133.82,12.74548185]
[1750676277400,37.28,133.86,133.8,7.78958185]
[1750676277609,2.74504175,133.85,133.8,5.27528185]
[1750676278505,7.4701,133.83,133.8,12.74638185]
[1750676280101,7.4701,133.83,133.81,6.99002356]
[1750676280302,7.4701,133.83,133.82,3.37531083]
[1750676281805,7.4696,133.84,133.82,10.84561083]
[1750676282004,7.4696,133.84,133.83,3.37531083]
[1750676284504,7.4691,133.85,133.83,3.37531083]
[1750676284702,40.02400904,133.86,133.84,3.37531083]
[1750676284901,44.7485,133.86,133.85,3.37531083]
[1750676285306,44.7485,133.86,133.82,6.99002356]
[1750676285307,37.28,133.86,133.83,7.4696]
[1750676285610,37.28,133.86,133.84,3.37531083]
[1750676285799,37.28,133.86,133.83,3.37531083]
[1750676286610,7.4688,133.85,133.83,3.37531083]
[1750676286912,37.28,133.86,133.83,3.37531083]
[1750676288209,37.28,133.86,133.82,12.74280118]
[1750676288816,7.4693,133.84,133.82,12.74280118]
[1750676289208,7.4693,133.84,133.82,5.27260118]
[1750676290208,7.4699,133.83,133.82,5.27260118]
[1750676293610,7.4705,133.82,133.81,42.45260118]
[1750676296418,7.4705,133.82,133.81,5.27260118]
[1750676299324,7.4702,133.83,133.81,5.27260118]
[1750676300614,7.4698,133.84,133.81,12.74340118]
[1750676300819,37.28,133.86,133.81,12.74340118]
[1750676301728,7.4699,133.83,133.81,12.74340118]
[1750676307629,7.4699,133.83,133.81,5.27260118]
[1750676309635,7.4705,133.82,133.81,5.27260118]
[1750676310234,7.4705,133.82,133.81,3.37508705]
[1750676310933,7.4705,133.82,133.8,7.4716]
[1750676311133,7.4705,133.82,133.81,3.37508705]
[1750676312341,7.4702,133.83,133.81,3.37508705]
[1750676312542,7.4702,133.83,133.82,3.37508705]
[1750676312741,40.65508705,133.86,133.82,3.37508705]
[1750676312938,7.4696,133.84,133.83,3.37508705]
[1750676315242,7.4696,133.84,133.81,7.471]
[1750676315445,2.74417768,133.85,133.81,3.37508705]
[1750676315744,40.65508705,133.86,133.82,3.37508705]
[1750676316044,7.4699,133.83,133.82,3.37508705]
[1750676325346,7.4699,133.83,133.82,3.37500947]
[1750676325942,7.4705,133.82,133.8,16.74402095]
[1750676326144,7.4705,133.82,133.79,39.4947]
[1750676326145,7.4705,133.82,133.81,3.37500947]
[1750676326344,3.37500947,133.84,133.8,3.37500947]
[1750676326757,7.471,133.81,133.8,3.37607945]
[1750676329359,7.4708,133.82,133.8,3.37607945]
[1750676329561,7.4708,133.82,133.81,3.37607945]
[1750676330048,7.4708,133.82,133.79,9.8266]
[1750676330348,7.4708,133.82,133.81,3.37607945]
[1750676332957,37.28,133.86,133.81,3.37607945]
[1750676333157,37.28,133.86,133.83,3.37607945]
[1750676333158,8.33705936,133.85,133.83,3.37607945]
[1750676333365,5.59245539,133.84,133.83,3.37607945]
[1750676333957,37.28,133.86,133.83,3.37607945]
[1750676334258,5.59271757,133.85,133.83,3.37607945]
[1750676334464,37.28,133.86,133.83,3.37607945]
[1750676334656,7.4697,133.84,133.83,3.37607945]
[1750676341961,7.47,133.83,133.81,7.4708]
[1750676342165,7.47,133.83,133.82,3.37607945]
[1750676343270,7.47,133.83,133.79,39.4947]
[1750676343271,7.4709,133.82,133.81,3.37607945]
[1750676343465,3.37607945,133.83,133.8,3.37607945]
[1750676343667,3.37607945,133.83,133.79,3.37607945]
[1750676343867,5.59505043,133.82,133.79,3.37607945]
[1750676344069,3.37607945,133.83,133.79,3.37607945]
[1750676344369,5.59528295,133.82,133.8,3.37607945]
[1750676344562,3.37607945,133.83,133.8,3.37607945]
[1750676344764,5.59477311,133.82,133.8,3.37607945]
[1750676345062,3.37607945,133.83,133.8,3.37607945]
[1750676345263,5.59535757,133.82,133.8,3.37607945]
[1750676345465,3.37607945,133.83,133.8,3.37607945]
[1750676345672,7.471,133.81,133.8,3.37607945]
[1750676345861,5.59357939,133.81,133.79,3.37607945]
[1750676346065,2.7490541,133.82,133.79,3.37607945]
[1750676346261,5.59480647,133.81,133.79,3.37607945]
[1750676346469,3.37607945,133.83,133.79,3.37607945]
[1750676346773,7.472,133.8,133.79,3.37607945]
[1750676348972,7.472,133.8,133.77,7.473]
[1750676349275,7.472,133.8,133.79,3.37607945]
[1750676357383,7.4724,133.79,133.78,3.37607945]
[1750676359983,7.4727,133.78,133.77,6.98419056]
[1750676360181,7.4727,133.78,133.77,3.37607945]
[1750676366290,7.4724,133.79,133.77,3.37607945]
[1750676366493,7.4724,133.79,133.78,3.37607945]
[1750676367187,7.4719,133.8,133.78,3.37607945]
[1750676367393,7.4719,133.8,133.79,3.37607945]
[1750676367590,37.1,133.81,133.79,3.37607945]
[1750676367791,44.5714,133.81,133.79,3.37607945]
[1750676368193,44.5714,133.81,133.8,3.37607945]
[1750676368392,37.1,133.81,133.8,3.37607945]
[1750676368991,44.571,133.81,133.8,3.37607945]
[1750676370497,44.571,133.81,133.79,3.37607945]
[1750676370894,44.571,133.81,133.8,3.37607945]
[1750676379297,7.471,133.81,133.8,3.37607945]
[1750676384403,7.4707,133.82,133.8,3.37607945]
[1750676389910,37.06,133.84,133.81,3.37607945]
[1750676390111,5.5500814,133.83,133.82,3.37607945]
[1750676391413,13.0199814,133.83,133.82,3.37607945]
[1750676391912,7.4699,133.83,133.82,3.37607945]
[1750676395615,7.4699,133.83,133.81,3.37607945]
[1750676396117,3.37607945,133.83,133.8,5.74837945]
[1750676396314,3.37607945,133.83,133.8,3.37607945]
[1750676396915,7.471,133.81,133.8,3.37607945]
[1750676398721,7.471,133.81,133.79,3.37607945]
[1750676398920,7.4716,133.8,133.79,3.37607945]
[1750676400019,7.4713,133.81,133.79,3.37607945]
[1750676400219,3.37607945,133.82,133.79,3.37607945]
[1750676400422,8.92292555,133.83,133.78,6.98626041]
[1750676400620,43.17650031,133.84,133.8,3.37607945]
[1750676400820,5.54682376,133.83,133.8,3.37607945]
[1750676401017,3.37607945,133.83,133.8,3.37607945]
[1750676401224,7.4709,133.82,133.8,3.37607945]
[1750676401412,3.37607945,133.83,133.8,3.37607945]
[1750676401612,7.471,133.81,133.8,3.37607945]
[1750676402020,3.37607945,133.83,133.8,3.37607945]
[1750676402219,40.43607945,133.84,133.78,6.98626041]
[1750676402521,40.43607945,133.84,133.77,11.72852095]
[1750676402522,37.06,133.84,133.81,3.37607945]
[1750676402826,7.4704,133.83,133.82,3.37607945]
[1750676403214,7.4708,133.82,133.81,3.37607945]
[1750676403820,7.4708,133.82,133.8,3.37607945]
[1750676405422,7.4708,133.82,133.81,3.37607945]
[1750676405624,7.4701,133.83,133.81,3.37607945]
[1750676405828,7.4701,133.83,133.82,3.37607945]
[1750676406722,44.5296,133.84,133.82,3.37607945]
[1750676406927,37.06,133.84,133.83,3.37607945]
[1750676407230,13.02188594,133.85,133.83,3.37607945]
[1750676407532,7.4691,133.85,133.84,3.37607945]
[1750676407732,40.43607945,133.87,133.83,3.37607945]
[1750676407923,7.4699,133.83,133.82,3.37607945]
[1750676409829,7.4697,133.84,133.82,3.37607945]
[1750676410032,7.4697,133.84,133.83,3.37607945]
[1750676410529,7.4697,133.84,133.82,3.37607945]
[1750676410530,13.04043481,133.84,133.82,3.37607945]
[1750676410730,7.4697,133.84,133.82,3.37607945]
[1750676411536,7.4697,133.84,133.82,10.84647945]
[1750676411829,7.4697,133.84,133.83,3.37607945]
[1750676412128,7.4691,133.85,133.83,10.84587945]
[1750676412331,7.4691,133.85,133.84,3.37607945]
[1750676412529,13.04182461,133.85,133.84,3.37607945]
[1750676412919,13.04182461,133.85,133.83,3.37607945]
[1750676413124,7.4691,133.85,133.83,3.37607945]
[1750676415228,7.4691,133.85,133.82,7.4702]
[1750676415229,7.4699,133.83,133.81,2.3738]
[1750676415428,3.37607945,133.84,133.81,3.37607945]
[1750676415738,5.57169203,133.83,133.81,3.37607945]
[1750676416027,7.4702,133.83,133.81,3.37607945]
[1750676416229,5.57204859,133.84,133.82,3.37607945]
[1750676416431,7.469,133.85,133.83,3.37607945]
[1750676419131,7.4693,133.84,133.83,3.37607945]
[1750676419333,7.4693,133.84,133.81,7.4707]
[1750676419535,7.4693,133.84,133.83,3.37607945]
[1750676426435,7.4691,133.85,133.83,10.84597945]
[1750676426632,7.4691,133.85,133.84,3.37607945]
[1750676428534,7.4685,133.86,133.84,3.37607945]
[1750676428734,37.06,133.87,133.8,2.3788]
[1750676428735,37.06,133.87,133.85,3.37607945]
[1750676428931,37.06,133.87,133.86,3.37607945]
[1750676429237,42.63013789,133.87,133.86,3.37607945]
[1750676429438,50.09783789,133.87,133.86,3.37607945]
[1750676429637,37.06,133.87,133.86,3.37607945]
[1750676429830,2.74424333,133.89,133.86,3.37607945]
[1750676430027,10.21092582,133.89,133.88,3.37607945]
[1750676430240,13.03479321,133.89,133.88,3.37607945]
[1750676431430,37.0,133.9,133.88,3.37607945]
[1750676431643,37.0,133.9,133.89,3.37607945]
[1750676432032,44.466,133.9,133.89,3.37607945]
[1750676432836,37.0,133.9,133.89,3.37607945]
[1750676433029,37.0,133.9,133.89,10.84267945]
[1750676433234,13.02513764,133.92,133.89,10.84267945]
[1750676433434,13.02513764,133.92,133.9,3.37607945]
[1750676433832,7.4654,133.92,133.91,3.37607945]
[1750676434229,107.19505019,133.93,133.91,3.37607945]
[1750676434431,107.19505019,133.93,133.92,3.37607945]
[1750676435130,7.465,133.92,133.91,3.37607945]
[1750676435435,103.10662964,133.93,133.9,3.37607945]
[1750676435941,7.4653,133.92,133.9,3.37607945]
[1750676436440,7.4654,133.91,133.9,3.37607945]
[1750676436641,99.73055019,133.93,133.9,3.37607945]
[1750676436947,7.4651,133.92,133.91,3.37607945]
[1750676437442,44.4646,133.93,133.91,3.37607945]
[1750676437640,44.4646,133.93,133.92,3.37607945]
[1750676442842,44.4646,133.93,133.91,3.37607945]
[1750676443645,7.4649,133.92,133.91,3.37607945]
[1750676444644,37.0,133.93,133.91,3.37607945]
[1750676444848,37.0,133.93,133.92,3.37607945]
[1750676445045,3.37607945,133.95,133.92,3.37607945]
[1750676445343,7.4641,133.94,133.92,3.37607945]
[1750676445744,3.37607945,133.95,133.92,3.37607945]
[1750676445947,7.4638,133.94,133.92,3.37607945]
[1750676447545,7.4638,133.94,133.93,3.37607945]
[1750676447846,7.4634,133.95,133.93,3.37607945]
[1750676448045,7.4634,133.95,133.94,3.37607945]
[1750676449346,7.4634,133.95,133.93,3.37607945]
[1750676449543,3.37607945,133.96,133.93,3.37607945]
[1750676449936,7.4642,133.94,133.92,3.37607945]
[1750676450646,7.4643,133.93,133.92,3.37607945]
[1750676451037,3.37607945,133.96,133.92,3.37607945]
[1750676451237,36.94,133.98,133.93,3.37607945]
[1750676451439,3.37607945,133.97,133.93,3.37607945]
[1750676451644,7.4635,133.95,133.91,9.8764]
[1750676451942,3.37607945,133.96,133.93,3.37607945]
[1750676452650,7.4641,133.94,133.93,3.37607945]
[1750676460355,7.4634,133.95,133.93,3.37607945]
[1750676460557,7.4634,133.95,133.94,3.37607945]
[1750676462365,7.4629,133.96,133.94,3.37607945]
[1750676463065,7.4632,133.95,133.94,3.37607945]
[1750676465564,3.37607945,133.97,133.92,2.3966]
[1750676465766,3.37607945,133.97,133.93,3.37607945]
[1750676466070,7.4638,133.94,133.93,3.37607945]
[1750676467967,3.37607945,133.94,133.9,3.37607945]
[1750676468269,7.4658,133.91,133.9,3.37607945]
[1750676470567,7.4651,133.92,133.9,3.37607945]
[1750676470770,40.27607945,133.95,133.91,3.37607945]
[1750676471075,45.88663016,133.95,133.91,3.37607945]
[1750676471375,7.4646,133.93,133.92,3.37607945]
[1750676473768,5.61889616,133.94,133.92,3.37607945]
[1750676473769,7.464,133.94,133.92,3.37607945]
[1750676473973,7.464,133.94,133.93,3.37607945]
[1750676474273,7.464,133.94,133.92,3.37607945]
[1750676474472,7.4643,133.93,133.92,3.37607945]
[1750676476379,7.4641,133.94,133.92,3.37607945]
[1750676477272,7.4641,133.94,133.93,3.37607945]
[1750676478077,13.09583007,133.94,133.93,3.37607945]
[1750676478574,5.63173504,133.94,133.93,3.37607945]
[1750676478977,5.6316676,133.94,133.93,3.37607945]
[1750676479877,13.0954676,133.94,133.93,3.37607945]
[1750676480277,5.63201281,133.94,133.93,10.84037945]
[1750676480480,7.4635,133.95,133.93,10.84037945]
[1750676480678,7.4635,133.95,133.94,3.37607945]
[1750676482579,7.4635,133.95,133.94,10.83987945]
[1750676482780,7.4629,133.96,133.94,10.83987945]
[1750676483080,7.4629,133.96,133.95,3.37607945]
[1750676483272,13.09671503,133.96,133.95,3.37607945]
[1750676484879,5.6334214,133.96,133.95,3.37607945]
[1750676486683,13.0961214,133.96,133.95,3.37607945]
[1750676486982,7.4627,133.96,133.95,3.37607945]
[1750676487986,13.0961538,133.96,133.95,3.37607945]
[1750676489390,5.6334538,133.96,133.95,3.37607945]
[1750676490488,7.4624,133.97,133.95,3.37607945]
[1750676490786,7.4624,133.97,133.96,3.37607945]
[1750676490986,13.09544695,133.97,133.96,3.37607945]
[1750676491580,5.63304695,133.97,133.96,3.37607945]
[1750676492188,36.9,133.99,133.96,3.37607945]
[1750676492390,5.6325371,133.98,133.96,3.37607945]
[1750676492592,5.63246294,133.97,133.96,3.37607945]
[1750676493490,10.2293812,133.98,133.96,3.37607945]
[1750676493692,5.63970885,133.97,133.96,3.37607945]
[1750676494490,13.10180885,133.97,133.96,3.37607945]
[1750676496396,7.4621,133.97,133.96,3.37607945]
[1750676496606,13.10070535,133.97,133.96,3.37607945]
[1750676497698,7.4621,133.97,133.96,3.37607945]
[1750676497898,13.09993246,133.97,133.96,3.37607945]
[1750676498504,5.63783246,133.97,133.92,2.3456]
[1750676498690,2.765954,133.98,133.95,3.37607945]
[1750676498894,5.638128,133.97,133.95,3.37607945]
[1750676499094,7.4629,133.96,133.93,7.464]
[1750676499396,7.4629,133.96,133.95,3.37607945]
[1750676499601,7.4623,133.97,133.95,3.37607945]
[1750676499794,7.4623,133.97,133.94,7.4635]
[1750676499795,7.4623,133.97,133.96,3.37607945]
[1750676500104,7.4618,133.98,133.96,3.37607945]
[1750676500401,7.4618,133.98,133.97,3.37607945]
[1750676500602,13.09712898,133.98,133.97,3.37607945]
[1750676502198,7.4618,133.98,133.97,3.37607945]
[1750676502396,13.09568433,133.98,133.97,3.37607945]
[1750676505102,7.4618,133.98,133.97,3.37607945]
[1750676505300,13.09460915,133.98,133.97,3.37607945]
[1750676506204,7.4618,133.98,133.97,3.37607945]
[1750676513710,36.9,133.99,133.97,10.83817945]
[1750676513923,36.86,134.02,133.98,3.37607945]
[1750676514212,7.4604,134.0,133.99,3.37607945]
[1750676514414,13.09342354,134.0,133.99,3.37607945]
[1750676515608,36.86,134.02,133.99,3.37607945]
[1750676515809,36.86,134.02,133.96,36.86]
[1750676515810,5.63388653,134.01,133.96,36.86]
[1750676516011,7.4602,134.01,134.0,3.37607945]
[1750676516215,13.09724516,134.01,134.0,3.37607945]
[1750676517412,5.63704516,134.01,133.99,3.37607945]
[1750676517617,39.62460398,134.02,133.99,3.37607945]
[1750676517819,7.4613,133.99,133.97,2.4195]
[1750676518118,7.4613,133.99,133.98,3.37607945]
[1750676522619,13.09874147,133.99,133.98,3.37607945]
[1750676525121,13.09874147,133.99,133.97,2.4195]
[1750676525324,7.4613,133.99,133.98,3.37607945]
[1750676525623,13.10112331,133.99,133.98,3.37607945]
[1750676527125,48.64815112,133.99,133.94,9.7605]
[1750676527424,8.41237147,133.98,133.95,3.37607945]
[1750676527726,13.10242331,133.97,133.95,3.37607945]
[1750676527924,7.4626,133.97,133.95,3.37607945]
[1750676528127,7.4626,133.97,133.96,3.37607945]
[1750676528324,13.10402659,133.97,133.96,3.37607945]
[1750676529720,7.4626,133.97,133.96,3.37607945]
[1750676535835,13.10169965,133.97,133.96,3.37607945]
[1750676536136,7.4626,133.97,133.96,3.37607945]
[1750676536336,13.10449863,133.97,133.96,3.37607945]
[1750676537235,13.10449863,133.97,133.94,9.7605]
[1750676537437,7.4626,133.97,133.96,3.37607945]
[1750676537736,13.09278042,133.97,133.96,3.37607945]
[1750676538531,7.4626,133.97,133.96,3.37607945]
[1750676538733,13.09276409,133.97,133.96,3.37607945]
[1750676540929,7.4626,133.97,133.96,3.37607945]
[1750676542438,7.4627,133.96,133.94,2.297]
[1750676542636,7.4627,133.96,133.95,3.37607945]
[1750676542835,7.4627,133.96,133.94,2.297]
[1750676543132,7.4627,133.96,133.95,3.37607945]
[1750676543733,7.4627,133.96,133.94,2.297]
[1750676544035,7.4627,133.96,133.95,3.37607945]
[1750676547034,7.4627,133.96,133.94,2.297]
[1750676547233,7.4627,133.96,133.95,3.37607945]
[1750676552041,7.4632,133.95,133.93,2.3298]
[1750676552343,7.4632,133.95,133.94,3.37607945]
[1750676553146,7.4629,133.96,133.94,3.37607945]
[1750676553346,7.4629,133.96,133.95,3.37607945]
[1750676553545,13.09313028,133.96,133.95,3.37607945]
[1750676554144,7.4629,133.96,133.95,3.37607945]
[1750676554652,7.4624,133.97,133.95,10.83897945]
[1750676554839,7.4624,133.97,133.95,7.4629]
[1750676555042,7.4624,133.97,133.96,3.37607945]
[1750676556441,13.09063759,133.97,133.96,3.37607945]
[1750676559547,7.4619,133.98,133.96,3.37607945]
[1750676559849,36.86,133.99,133.96,3.37607945]
[1750676560050,5.62801641,133.98,133.96,3.37607945]